bitfinex/quotes_SOLUSD_20240612
["timestamp","ask_amount","ask_price","bid_price","bid_amount"]
[1718166649397,8.4,151.17,151.16,4.8954]
[1718166649569,8.4,151.18,151.16,5.0654]
[1718166649966,8.4,151.18,151.17,2.4475]
[1718166650395,16.3139,151.22,151.19,2.4472]
[1718166650573,8.4,151.2,151.19,2.4472]
[1718166651669,8.4,151.2,151.18,2.4473]
[1718166651875,8.4,151.19,151.18,2.4473]
[1718166652093,8.4,151.19,151.13,6.6408]
[1718166652397,8.4,151.2,151.16,2.4477]
[1718166652698,8.4,151.17,151.16,2.4477]
[1718166653202,16.3139,151.22,151.14,4.8958]
[1718166653403,16.3139,151.22,151.17,2.4475]
[1718166653603,8.4,151.18,151.16,2.4476]
[1718166653900,8.4,151.17,151.16,2.4476]
[1718166654501,8.4,151.17,151.15,2.4478]
[1718166654798,33.6,151.2,151.16,2.4477]
[1718166654998,2.4469,151.21,151.15,2.4478]
[1718166655173,8.4,151.16,151.15,2.4478]
[1718166657723,8.4,151.16,151.13,2.4481]
[1718166658004,33.6,151.2,151.13,2.4481]
[1718166658005,8.4,151.14,151.13,2.4481]
[1718166660507,33.6,151.2,151.15,2.4478]
[1718166660709,8.4,151.16,151.15,2.4478]
[1718166661587,8.4,151.16,151.13,0.17]
[1718166661791,8.4,151.14,151.13,2.4481]
[1718166662687,8.4,151.14,151.13,2.6181]
[1718166663212,16.3139,151.22,151.17,2.4474]
[1718166663393,8.4,151.18,151.17,2.4475]
[1718166664513,16.4669,151.27,151.19,4.8943]
[1718166664687,16.4669,151.27,151.21,2.4468]
[1718166664688,18.9128,151.27,151.21,2.4468]
[1718166664887,8.4,151.22,151.2,2.617]
[1718166665185,8.4,151.21,151.2,2.617]
[1718166666482,18.9128,151.27,151.21,2.4468]
[1718166666696,8.4,151.22,151.21,2.4468]
[1718166667504,16.4669,151.27,151.21,2.4468]
[1718166667811,8.4,151.22,151.21,2.4468]
[1718166668410,16.4669,151.27,151.22,2.4467]
[1718166668604,8.4,151.23,151.22,2.4467]
[1718166670106,8.4,151.23,151.2,0.17]
[1718166670309,8.4,151.21,151.19,0.34]
[1718166670626,8.4,151.2,151.19,2.4472]
[1718166671293,2.4461,151.26,151.2,2.4469]
[1718166671497,8.4,151.21,151.2,2.4469]
[1718166672006,8.4,151.21,151.16,9.7908]
[1718166672215,8.4,151.19,151.16,14.6861]
[1718166672397,8.4,151.19,151.18,2.4474]
[1718166675393,18.9129,151.27,151.18,0.34]
[1718166675594,8.4,151.21,151.2,2.447]
[1718166677016,16.4669,151.27,151.26,2.4461]
[1718166677318,24.8669,151.27,151.25,2.4461]
[1718166677520,8.4,151.26,151.21,0.17]
[1718166677709,8.4,151.23,151.22,2.4466]
[1718166678230,16.4669,151.27,151.22,14.6804]
[1718166678405,16.4669,151.27,151.23,2.4465]
[1718166678603,8.4,151.24,151.23,2.4465]
[1718166678805,16.4669,151.27,151.24,2.4463]
[1718166679200,8.4,151.25,151.24,2.4463]
[1718166679510,33.6,151.28,151.24,2.4463]
[1718166679710,8.4,151.25,151.24,2.4463]
[1718166680514,8.4,151.25,151.23,2.4465]
[1718166680722,8.4,151.24,151.23,2.4465]
[1718166684511,33.6,151.28,151.23,2.4465]
[1718166684832,8.4,151.24,151.23,2.4465]
[1718166685829,2.4456,151.29,151.23,2.4465]
[1718166686006,15.6052,151.3,151.24,2.4464]
[1718166686331,8.4,151.28,151.27,2.4458]
[1718166686916,15.6052,151.3,151.25,0.17]
[1718166687120,8.4,151.28,151.27,2.4458]
[1718166689611,259.3,151.31,151.28,2.4457]
[1718166689824,8.4,151.29,151.28,2.4457]
[1718166695958,16.4335,151.34,151.31,2.4451]
[1718166696126,8.4,151.32,151.31,2.4451]
[1718166697355,16.4335,151.34,151.32,2.4451]
[1718166697568,8.4,151.33,151.32,2.4451]
[1718166699450,8.4,151.33,151.31,2.4452]
[1718166699662,0.8394602,151.37,151.3,4.8908]
[1718166699860,33.6,151.36,151.32,2.445]
[1718166700028,8.4,151.33,151.32,2.445]
[1718166700530,0.8394602,151.37,151.32,2.445]
[1718166700735,8.4,151.33,151.32,2.445]
[1718166713068,0.8394602,151.37,151.32,2.445]
[1718166713252,33.6,151.36,151.33,2.4449]
[1718166713568,8.4,151.34,151.32,2.4451]
[1718166713735,8.4,151.33,151.32,2.4451]
[1718166713939,8.4,151.33,151.3,2.4454]
[1718166714137,8.4,151.31,151.3,2.4454]
[1718166714463,8.4,151.31,151.29,2.4455]
[1718166714669,53.46,151.36,151.26,14.6758]
[1718166714670,8.4,151.3,151.28,4.8914]
[1718166714963,55.9045,151.36,151.31,2.4452]
[1718166715259,8.4,151.32,151.3,2.4453]
[1718166715452,8.4,151.31,151.3,2.4453]
[1718166716167,55.9045,151.36,151.31,2.4453]
[1718166716368,8.4,151.32,151.31,2.4453]
[1718166719276,33.6,151.36,151.32,2.4451]
[1718166719472,8.4,151.33,151.32,2.4451]
[1718166721772,8.4,151.33,151.3,4.8908]
[1718166721773,8.4,151.33,151.3,2.4453]
[1718166721963,36.0445,151.36,151.31,2.4452]
[1718166722169,8.4,151.32,151.28,14.6744]
[1718166722359,8.4,151.3,151.29,2.4456]
[1718166723776,8.4,151.3,151.28,2.4457]
[1718166724092,8.4,151.29,151.28,2.4457]
[1718166724253,8.4,151.29,151.24,21.1258]
[1718166724454,2.4452,151.32,151.27,2.4459]
[1718166724674,8.4,151.28,151.27,2.4459]
[1718166725473,8.4,151.28,151.24,16.2331]
[1718166725474,8.4,151.28,151.24,2.4463]
[1718166725771,2.4453,151.31,151.25,2.4462]
[1718166725974,8.4,151.26,151.23,7.3396]
[1718166726177,8.4,151.26,151.25,2.4462]
[1718166726354,8.4,151.26,151.25,7.3387]
[1718166726560,8.4,151.27,151.26,2.4461]
[1718166729564,18.2345,151.33,151.27,2.4458]
[1718166729768,8.4,151.28,151.27,2.4458]
[1718166730375,8.4,151.28,151.25,2.4461]
[1718166730584,2.4452,151.32,151.26,2.4461]
[1718166730878,8.4,151.27,151.26,2.4461]
[1718166731377,20.97812056,151.33,151.24,0.17]
[1718166731572,8.4,151.27,151.24,7.8493]
[1718166731881,15.7895,151.33,151.29,2.4454]
[1718166732261,15.7895,151.33,151.3,2.4454]
[1718166732463,8.4,151.31,151.29,2.4455]
[1718166732675,15.7895,151.33,151.29,2.4455]
[1718166732676,8.4,151.3,151.29,2.4455]
[1718166733188,8.4,151.3,151.25,0.17]
[1718166733364,18.2345,151.33,151.27,2.4458]
[1718166733865,15.7895,151.33,151.28,2.4457]
[1718166734262,15.7895,151.33,151.29,2.4456]
[1718166734564,8.4,151.3,151.26,2.446]
[1718166734762,8.4,151.27,151.26,2.446]
[1718166734991,8.4,151.27,151.24,2.4462]
[1718166735163,2.4453,151.31,151.25,2.4462]
[1718166735359,8.4,151.26,151.25,2.4462]
[1718166736689,38.0745,151.33,151.27,2.4459]
[1718166736884,8.4,151.28,151.27,2.4459]
[1718166738181,8.4,151.28,151.26,2.446]
[1718166738377,8.4,151.28,151.27,2.4459]
[1718166739377,15.2543,151.36,151.26,0.17]
[1718166739691,8.4,151.3,151.27,7.5077]
[1718166739864,8.4,151.3,151.27,7.3377]
[1718166740061,8.4,151.29,151.27,12.2294]
[1718166740469,51.2988,151.36,151.3,2.4453]
[1718166740671,8.4,151.31,151.3,2.4453]
[1718166740878,8.4,151.31,151.29,2.4455]
[1718166741066,8.4,151.3,151.29,2.4455]
[1718166741472,8.4,151.3,151.26,5.062]
[1718166741698,8.4,151.27,151.26,7.3381]
[1718166741992,8.4,151.27,151.26,2.4461]
[1718166743396,2.445,151.33,151.28,2.4457]
[1718166743694,8.4,151.29,151.28,2.4457]
[1718166748171,8.4,151.29,151.26,2.4459]
[1718166748371,2.4451,151.32,151.26,2.4459]
[1718166748372,8.4,151.27,151.26,2.4459]
[1718166748810,19.84,151.33,151.27,2.4458]
[1718166749118,8.4,151.28,151.27,2.4459]
[1718166749676,2.4449,151.34,151.25,12.2312]
[1718166749883,8.4,151.27,151.26,0.17]
[1718166750199,8.4,151.27,151.26,2.4461]
[1718166750400,8.4,151.27,151.23,4.893]
[1718166750602,8.4,151.28,151.25,2.4462]
[1718166750803,15.3466,151.31,151.26,2.446]
[1718166751106,8.4,151.27,151.26,2.446]
[1718166758219,15.3466,151.31,151.27,2.4459]
[1718166758510,15.3466,151.31,151.28,2.4456]
[1718166758710,8.4,151.29,151.28,2.4456]
[1718166759827,16.2515,151.35,151.27,4.8918]
[1718166759985,16.2515,151.35,151.31,2.4452]
[1718166760189,8.4,151.32,151.31,2.4452]
[1718166760397,16.2515,151.35,151.31,2.4452]
[1718166760724,8.4,151.32,151.31,2.4453]
[1718166761236,16.2515,151.35,151.3,2.4453]
[1718166761428,8.4,151.31,151.29,2.4456]
[1718166761600,16.2515,151.35,151.29,2.4456]
[1718166761601,8.4,151.3,151.29,2.4456]
[1718166761797,8.4,151.3,151.28,2.4457]
[1718166762118,18.6962,151.35,151.29,2.4456]
[1718166762323,8.4,151.3,151.29,2.4456]
[1718166762502,16.2515,151.35,151.3,2.4453]
[1718166762703,8.4,151.31,151.3,2.4453]
[1718166764109,16.2515,151.35,151.31,2.4453]
[1718166764323,8.4,151.32,151.31,2.4453]
[1718166764727,16.2515,151.35,151.32,2.4451]
[1718166764918,8.4,151.33,151.32,2.4451]
[1718166766636,8.4,151.33,151.29,0.17]
[1718166766931,8.4,151.31,151.3,2.4454]
[1718166767140,16.2515,151.35,151.31,2.4451]
[1718166767306,8.4,151.32,151.31,2.4451]
[1718166768408,16.2515,151.35,151.29,2.4455]
[1718166768409,18.25244899,151.35,151.29,2.4455]
[1718166768719,18.25244899,151.35,151.3,2.4454]
[1718166768916,8.4,151.31,151.3,2.4454]
[1718166769436,8.4,151.31,151.27,18.4441]
[1718166769437,15.80774899,151.35,151.31,2.4452]
[1718166769608,8.4,151.32,151.3,2.4453]
[1718166769809,15.80774899,151.35,151.29,2.4455]
[1718166769810,8.4,151.31,151.29,2.4455]
[1718166770110,8.4,151.3,151.29,2.4455]
[1718166770307,8.4,151.3,151.25,2.4461]
[1718166770543,8.4,151.26,151.25,2.4461]
[1718166774728,8.4,151.27,151.26,2.4461]
[1718166775828,8.4,151.27,151.26,7.3383]
[1718166781234,8.4,151.27,151.26,2.4461]
[1718166782136,19.84,151.33,151.22,7.3398]
[1718166782330,8.4,151.27,151.26,2.446]
[1718166783020,8.4,151.28,151.27,2.4459]
[1718166784934,8.4,151.28,151.26,2.446]
[1718166785143,28.51115689,151.35,151.27,2.4459]
[1718166785144,41.01705689,151.35,151.27,2.4459]
[1718166785436,8.4,151.28,151.27,2.4459]
[1718166788415,18.25244899,151.35,151.27,12.2296]
[1718166788727,8.4,151.29,151.28,2.4457]
[1718166789131,15.80774899,151.35,151.28,4.8914]
[1718166789330,8.4,151.3,151.29,2.4456]
[1718166789531,15.80774899,151.35,151.3,2.4454]
[1718166789735,8.4,151.31,151.3,2.4454]
[1718166790536,8.4,151.31,151.3,2.6154]
[1718166791526,8.4,151.31,151.3,2.4454]
[1718166793018,8.4,151.31,151.29,2.4455]
[1718166793217,18.25244899,151.35,151.29,2.4455]
[1718166793449,8.4,151.3,151.29,2.4455]
[1718166794535,15.80774899,151.35,151.3,2.4454]
[1718166794727,8.4,151.31,151.3,2.4454]
[1718166795324,8.4,151.31,151.26,0.17]
[1718166795531,8.4,151.28,151.26,0.68]
[1718166795826,8.4,151.28,151.27,2.4459]
[1718166796543,8.4,151.28,151.27,7.3378]
[1718166797138,8.4,151.28,151.27,7.5078]
[1718166797528,18.25244899,151.35,151.27,5.0619]
[1718166797727,8.4,151.29,151.28,2.4457]
[1718166800645,15.80774899,151.35,151.3,2.4454]
[1718166800851,8.4,151.31,151.3,2.4454]
[1718166801534,15.80774899,151.35,151.3,2.4453]
[1718166801745,8.4,151.31,151.3,2.4453]
[1718166801929,8.4,151.31,151.29,2.4455]
[1718166802339,8.4,151.3,151.29,2.4455]
[1718166802530,15.80774899,151.35,151.31,2.4453]
[1718166802850,8.4,151.32,151.3,2.4454]
[1718166803046,8.4,151.31,151.3,2.4454]
[1718166803544,15.80774899,151.35,151.31,2.4452]
[1718166803746,8.4,151.32,151.31,2.4452]
[1718166806252,8.4,151.32,151.3,2.4453]
[1718166806430,8.4,151.31,151.3,2.4453]
[1718166806838,15.80774899,151.35,151.3,2.4453]
[1718166807045,8.4,151.31,151.3,2.4453]
[1718166807552,15.80774899,151.35,151.31,2.4452]
[1718166807758,8.4,151.32,151.31,2.4452]
[1718166807927,15.80774899,151.35,151.31,2.4452]
[1718166808249,8.4,151.32,151.31,2.4452]
[1718166808948,8.4,151.32,151.3,2.4454]
[1718166809150,8.4,151.31,151.29,2.4455]
[1718166809354,8.4,151.3,151.29,2.4455]
[1718166809659,15.80774899,151.35,151.31,2.4452]
[1718166809859,8.4,151.32,151.31,2.4452]
[1718166810437,15.80774899,151.35,151.31,2.4452]
[1718166810642,3.2838602,151.37,151.31,2.4452]
[1718166810848,8.4,151.35,151.31,12.2264]
[1718166811036,8.4,151.35,151.33,2.4448]
[1718166811445,8.4,151.35,151.33,0.17]
[1718166811748,8.4,151.35,151.34,2.4448]
[1718166812146,8.4,151.35,151.34,2.6148]
[1718166812339,9.2394602,151.37,151.35,2.4445]
[1718166812537,0.8394602,151.37,151.36,2.4445]
[1718166812741,9.2394602,151.37,151.36,2.4445]
[1718166814539,9.2394602,151.37,151.35,2.4445]
[1718166814743,8.4,151.36,151.35,2.4445]
[1718166816851,0.8394602,151.37,151.36,2.4445]
[1718166817052,9.2394602,151.37,151.36,2.4445]
[1718166817237,0.8394602,151.37,151.36,2.4445]
[1718166817442,9.2394602,151.37,151.36,2.4445]
[1718166819161,9.2394602,151.37,151.34,2.4447]
[1718166819371,8.4,151.36,151.34,2.4447]
[1718166819667,0.8394602,151.37,151.35,2.4446]
[1718166819854,8.4,151.36,151.35,2.4446]
[1718166820442,8.4,151.36,151.32,7.3354]
[1718166820644,8.4,151.35,151.32,12.2255]
[1718166820843,8.4,151.35,151.34,2.4446]
[1718166822670,0.8394602,151.37,151.36,7.5035]
[1718166822863,0.8394602,151.37,151.36,8.0135]
[1718166823249,0.8394602,151.37,151.36,2.4445]
[1718166823449,9.2394602,151.37,151.36,2.4445]
[1718166823651,0.8394602,151.37,151.36,2.4445]
[1718166823948,9.2394602,151.37,151.36,2.4445]
[1718166824176,9.2394602,151.37,151.36,2.6145]
[1718166824560,0.8394602,151.37,151.36,2.9545]
[1718166824877,9.2394602,151.37,151.36,2.7845]
[1718166825061,9.2394602,151.37,151.36,2.4445]
[1718166825259,9.2394602,151.37,151.31,9.7812]
[1718166825465,9.2394602,151.37,151.29,16.2053]
[1718166825466,17.3524602,151.37,151.29,16.2053]
[1718166825668,8.4,151.33,151.31,2.4451]
[1718166825857,8.4,151.33,151.32,2.4451]
[1718166826259,17.3524602,151.37,151.32,2.4451]
[1718166826472,8.4,151.33,151.32,2.4451]
[1718166826854,8.4,151.33,151.27,7.3374]
[1718166827064,8.4,151.31,151.3,2.4454]
[1718166829578,33.6,151.36,151.3,2.4454]
[1718166829752,8.4,151.32,151.31,2.4451]
[1718166831285,2.4453,151.31,151.25,2.4462]
[1718166831464,8.4,151.26,151.24,2.4463]
[1718166831670,8.4,151.26,151.25,2.4462]
[1718166833267,16.247,151.32,151.28,2.4457]
[1718166833488,8.4,151.29,151.28,2.4457]
[1718166834674,16.247,151.32,151.29,2.4455]
[1718166834875,8.4,151.3,151.29,2.4455]
[1718166835174,8.4,151.3,151.28,2.4457]
[1718166835476,8.4,151.29,151.28,2.4457]
[1718166838059,49.6656,151.36,151.28,0.17]
[1718166838259,16.0656,151.36,151.29,0.34]
[1718166838579,49.6656,151.36,151.32,2.445]
[1718166838787,8.4,151.33,151.32,2.445]
[1718166839080,8.4,151.33,151.3,2.6154]
[1718166839279,8.4,151.31,151.3,2.4454]
[1718166839486,8.4,151.31,151.25,11.362]
[1718166839657,19.84,151.35,151.28,2.4456]
[1718166839658,2.4449,151.34,151.28,2.4456]
[1718166839983,8.4,151.29,151.28,2.4457]
[1718166842658,8.4,151.29,151.25,6.4696]
[1718166842862,2.4452,151.32,151.26,2.446]
[1718166843189,8.4,151.27,151.26,2.446]
[1718166844889,8.4,151.27,151.26,7.3382]
[1718166845274,8.4,151.27,151.26,2.446]
[1718166845477,8.4,151.27,151.23,4.893]
[1718166845680,8.4,151.28,151.24,2.4464]
[1718166845996,8.4,151.25,151.24,2.4464]
[1718166849285,33.6,151.28,151.25,2.4461]
[1718166849606,15.0868,151.3,151.25,2.4461]
[1718166849896,8.4,151.26,151.25,2.4461]
[1718166850788,8.4,151.26,151.23,2.4464]
[1718166850970,8.4,151.28,151.21,6.4671]
[1718166850971,8.4,151.24,151.21,6.4671]
[1718166851171,8.4,151.23,151.21,11.3609]
[1718166851586,8.4,151.24,151.21,11.3609]
[1718166851785,8.4,151.24,151.23,2.4466]
[1718166852585,33.6,151.28,151.25,2.4462]
[1718166852786,8.4,151.26,151.24,2.4463]
[1718166852989,8.4,151.25,151.24,2.4463]
[1718166854237,8.4,151.25,151.23,2.4465]
[1718166854405,8.4,151.24,151.23,2.4465]
[1718166854607,33.6,151.28,151.24,2.4463]
[1718166854790,8.4,151.25,151.24,2.4463]
[1718166855904,8.4,151.25,151.23,2.4465]
[1718166856206,8.4,151.24,151.23,2.4465]
[1718166856374,8.4,151.24,151.2,4.8939]
[1718166856708,55.8858,151.28,151.23,2.4465]
[1718166857001,55.8858,151.28,151.2,4.8939]
[1718166857002,8.4,151.24,151.22,2.4467]
[1718166857180,55.8858,151.28,151.23,2.4465]
[1718166857502,8.4,151.24,151.23,2.4465]
[1718166857707,8.4,151.24,151.2,4.8939]
[1718166857878,8.4,151.23,151.22,2.4467]
[1718166858798,8.4,151.24,151.23,2.4464]
[1718166859004,15.0868,151.3,151.26,2.446]
[1718166859247,15.0565,151.34,151.27,2.4459]
[1718166859384,8.4,151.29,151.28,2.4457]
[1718166859591,15.0565,151.34,151.31,2.4452]
[1718166859811,8.4,151.32,151.31,2.4452]
[1718166860002,15.0565,151.34,151.32,2.445]
[1718166860193,8.4,151.33,151.32,2.445]
[1718166860387,8.4,151.33,151.31,2.4452]
[1718166862082,8.4,151.33,151.32,2.4451]
[1718166862695,8.4,151.33,151.28,0.51]
[1718166862905,8.4,151.31,151.3,2.4454]
[1718166863987,0.8394602,151.37,151.33,2.4449]
[1718166864207,8.4,151.34,151.33,2.4449]
[1718166864392,0.8394602,151.37,151.33,2.4449]
[1718166864595,8.4,151.34,151.33,2.4449]
[1718166865189,8.4,151.34,151.31,2.4452]
[1718166865492,8.4,151.33,151.31,2.4452]
[1718166866006,3.2837602,151.37,151.3,2.4453]
[1718166866007,8.4,151.32,151.3,2.4453]
[1718166866213,8.4,151.32,151.26,2.446]
[1718166866214,8.4,151.31,151.26,2.446]
[1718166866414,8.4,151.28,151.26,2.446]
[1718166866590,19.84,151.36,151.24,15.8922]
[1718166866790,2.4449,151.34,151.28,2.4457]
[1718166867093,8.4,151.29,151.28,2.4457]
[1718166867306,8.4,151.31,151.3,2.4453]
[1718166868114,3.2838602,151.37,151.32,2.4451]
[1718166868115,0.8394602,151.37,151.32,2.4451]
[1718166868301,8.4,151.33,151.32,2.4451]
[1718166868495,33.6,151.36,151.29,5.0611]
[1718166868712,8.4,151.32,151.31,2.4451]
[1718166869394,8.4,151.32,151.31,2.4453]
[1718166869804,8.4,151.32,151.3,2.6153]
[1718166870107,8.4,151.31,151.3,2.4453]
[1718166870487,8.4,151.32,151.3,0.34]
[1718166870688,8.4,151.32,151.31,2.6153]
[1718166871313,0.8394602,151.37,151.31,0.17]
[1718166871530,0.8394602,151.37,151.35,2.4445]
[1718166871695,8.4,151.36,151.34,2.4447]
[1718166871886,8.4,151.35,151.34,2.4447]
[1718166872696,0.8394602,151.37,151.35,2.4446]
[1718166873043,8.4,151.36,151.35,2.4446]
[1718166873314,8.4,151.36,151.32,0.17]
[1718166873613,8.4,151.36,151.33,2.4449]
[1718166873818,8.4,151.34,151.33,2.4449]
[1718166874490,0.8394602,151.37,151.33,0.17]
[1718166874712,0.8394602,151.37,151.35,2.4445]
[1718166874887,8.4,151.36,151.35,2.4445]
[1718166875207,0.8394602,151.37,151.36,2.4445]
[1718166875404,9.2394602,151.37,151.36,2.4445]
[1718166875617,9.2394602,151.37,151.35,2.6146]
[1718166876119,9.2394602,151.37,151.35,2.4446]
[1718166877498,9.2394602,151.37,151.36,2.4445]
[1718166877921,9.2394602,151.37,151.34,2.4446]
[1718166878134,8.4,151.36,151.34,2.4446]
[1718166878732,8.4,151.35,151.34,2.4446]
[1718166878901,0.8394602,151.37,151.35,2.4446]
[1718166879102,8.4,151.36,151.35,2.4446]
[1718166880226,0.8394602,151.37,151.35,2.4446]
[1718166880409,0.8394602,151.37,151.36,2.4445]
[1718166880613,9.2394602,151.37,151.36,2.4445]
[1718166881636,9.2394602,151.37,151.29,13.7071]
[1718166881837,8.4,151.34,151.32,2.445]
[1718166882134,8.4,151.33,151.32,2.445]
[1718166883212,8.4,151.34,151.33,2.4449]
[1718166883607,8.4,151.34,151.32,2.445]
[1718166883807,8.4,151.34,151.33,2.4449]
[1718166885325,8.4,151.34,151.32,2.445]
[1718166885623,8.4,151.33,151.32,2.445]
[1718166886015,8.4,151.33,151.31,2.4453]
[1718166886202,8.4,151.36,151.32,2.4451]
[1718166886523,8.4,151.33,151.32,2.4451]
[1718166891026,8.4,151.33,151.29,4.891]
[1718166891209,8.4,151.3,151.29,2.4455]
[1718166891412,8.4,151.3,151.29,2.4456]
[1718166894618,8.4,151.3,151.29,2.7856]
[1718166894818,8.4,151.3,151.29,2.4456]
[1718166895319,50.0704,151.36,151.31,2.4452]
[1718166895536,50.0704,151.36,151.3,4.8908]
[1718166895848,8.4,151.32,151.31,2.4453]
[1718166898502,33.6,151.36,151.31,0.17]
[1718166898708,0.8394602,151.37,151.32,2.445]
[1718166899023,8.4,151.33,151.32,2.445]
[1718166900429,8.4,151.33,151.27,4.8917]
[1718166900632,8.4,151.29,151.28,2.4457]
[1718166902506,2.4446,151.35,151.29,2.4455]
[1718166902811,8.4,151.3,151.28,2.4456]
[1718166903015,2.4447,151.35,151.29,2.4456]
[1718166903238,8.4,151.3,151.29,2.4456]
[1718166903743,8.4,151.3,151.28,2.4457]
[1718166903924,8.4,151.29,151.28,2.4457]
[1718166904338,8.4,151.29,151.24,22.6546]
[1718166904514,53.44,151.36,151.25,2.4461]
[1718166904515,8.4,151.26,151.25,2.4461]
[1718166904721,8.4,151.26,151.24,2.4463]
[1718166904924,8.4,151.25,151.24,2.4463]
[1718166905331,2.4453,151.31,151.25,2.4462]
[1718166905538,2.4453,151.31,151.22,4.8933]
[1718166905539,15.3301,151.32,151.26,2.446]
[1718166905723,8.4,151.27,151.26,2.446]
[1718166906429,15.3301,151.32,151.26,2.446]
[1718166906629,15.3301,151.32,151.27,2.4459]
[1718166906843,8.4,151.28,151.27,2.4459]
[1718166908657,15.3301,151.32,151.26,2.446]
[1718166908827,8.4,151.28,151.26,2.446]
[1718166909428,8.4,151.28,151.25,2.4462]
[1718166909741,17.7752,151.32,151.24,0.51]
[1718166909742,15.3301,151.32,151.24,0.51]
[1718166909951,15.3301,151.32,151.27,2.4459]
[1718166910143,15.3301,151.32,151.28,2.4457]
[1718166910350,8.4,151.29,151.25,0.17]
[1718166910520,8.4,151.29,151.26,0.17]
[1718166910723,8.4,151.29,151.28,2.4457]
[1718166910917,15.7095,151.35,151.29,2.4455]
[1718166911241,8.4,151.3,151.29,2.4455]
[1718166911420,8.4,151.3,151.26,0.51]
[1718166911744,8.4,151.3,151.28,2.4457]
[1718166911948,8.4,151.29,151.26,0.34]
[1718166912246,35.5495,151.35,151.26,0.17]
[1718166912247,15.7095,151.35,151.26,0.17]
[1718166912549,8.4,151.29,151.26,0.51]
[1718166912925,8.4,151.29,151.28,2.4457]
[1718166915133,15.7095,151.35,151.3,2.4453]
[1718166915553,8.4,151.31,151.3,2.4453]
[1718166915957,0.8394602,151.37,151.3,0.17]
[1718166916170,0.8394602,151.37,151.3,9.08]
[1718166916377,0.8394602,151.37,151.35,2.4446]
[1718166916537,0.8394602,151.37,151.34,2.4448]
[1718166916738,9.2394602,151.37,151.34,2.4448]
[1718166917566,0.8394602,151.37,151.35,2.4446]
[1718166917744,8.4,151.36,151.35,2.4446]
[1718166919752,0.8394602,151.37,151.36,2.6145]
[1718166920066,0.8394602,151.37,151.36,125.125]
[1718166920271,0.8394602,151.37,151.36,148.7881]
[1718166922247,0.8394602,151.37,151.36,155.3094]
[1718166922980,0.8394602,151.37,151.36,146.9094]
[1718166923209,25.12,151.5,151.38,139.66]
[1718166923486,10.7244,151.51,151.38,139.66]
[1718166923487,13.1665,151.51,151.45,2.4429]
[1718166925267,8.2771,151.51,151.45,2.4429]
[1718166925756,8.277,151.51,151.46,2.4428]
[1718166925955,8.277,151.51,151.45,2.443]
[1718166926152,8.277,151.51,151.44,0.68]
[1718166926153,2.4425,151.48,151.42,2.4434]
[1718166926356,2.4425,151.48,151.43,2.4433]
[1718166926653,27.5624,151.49,151.43,2.4433]
[1718166927055,2.4425,151.48,151.43,2.4433]